fUST/lending_fUST_20250827
["ID","MTS","AMOUNT","RATE_DAILY","PERIOD"]
[381545140,1756276241567,-529.56067766,0.0003,120]
[381545141,1756276241580,-4000.0,0.0003,4]
[381545142,1756276241589,-14462.41423572,0.00030066,2]
[381545143,1756276241599,-535.65,0.00030099,15]
[381545144,1756276241610,-1160.0,0.00030104,2]
[381545145,1756276241620,-484.0,0.00030117,2]
[381545146,1756276241631,-284.30044916,0.0003013,2]
[381545147,1756276241641,-38251.8561977,0.00030137,2]
[381545148,1756276241651,-484.0,0.00030166,2]
[381545149,1756276241661,-556.0,0.00030171,2]
[381545150,1756276241671,-535.65,0.00030199,15]
[381545151,1756276241680,-979.01213485,0.000302,2]
[381545152,1756276241690,-1152.0,0.00030201,2]
[381545153,1756276241699,-650.0,0.00030212,5]
[381545154,1756276241709,-1553.74551493,0.00030259,13]
[381545155,1756276241749,-6301.17464684,0.00030259,13]
[381545156,1756276241759,-535.65,0.00030299,15]
[381545157,1756276241769,-736.0,0.00030347,7]
[381545158,1756276241779,-535.65,0.00030399,15]
[381545159,1756276241788,-556.0,0.00030445,2]
[381545160,1756276241798,-866.14197191,0.0003046,30]
[381545161,1756276241807,-535.65,0.00030499,15]
[381545162,1756276241818,-187.40190528,0.00030511,7]
[381545163,1756276241828,-192.40341798,0.00030583,10]
[381545164,1756276241838,-535.65,0.00030599,15]
[381545165,1756276241847,-1260.0,0.00030652,2]
[381545166,1756276241856,-535.65,0.00030699,15]
[381545167,1756276241865,-556.0,0.00030719,2]
[381545168,1756276241875,-750.0,0.0003076,5]
[381545169,1756276241884,-535.65,0.00030799,15]
[381545170,1756276241894,-12598.49,0.000308,2]
[381545171,1756276241906,-200.0,0.00030824,120]
[381545172,1756276241915,-535.65,0.00030899,15]
[381545173,1756276241925,-233.51889341,0.00030919,2]
[381545174,1756276241934,-302.78678267,0.0003099,2]
[381545175,1756276241944,-556.0,0.00030993,2]
[381545176,1756276241955,-535.65,0.00030999,15]
[381545177,1756276241964,-154.0,0.00031,120]
[381545178,1756276241974,-219.30172,0.00031,7]
[381545179,1756276241984,-151.0,0.00031,7]
[381545180,1756276241993,-152.303452,0.00031,7]
[381545181,1756276242002,-151.0,0.00031,7]
[381545182,1756276242013,-151.0,0.00031,7]
[381545183,1756276242022,-151.0,0.00031,7]
[381545184,1756276242031,-151.0,0.00031,7]
[381545185,1756276242042,-151.0,0.00031,7]
[381545186,1756276242051,-151.0,0.00031,7]
[381545187,1756276242061,-151.0,0.00031,7]
[381545188,1756276242076,-151.0,0.00031,7]
[381545189,1756276242091,-219.30172,0.00031083,7]
[381545190,1756276242101,-535.65,0.00031099,15]
[381545191,1756276242110,-4120.69,0.000311,7]
[381545192,1756276242120,-201.4531047,0.00031151,2]
[381545193,1756276242129,-219.30172,0.00031167,7]
[381545194,1756276242139,-535.65,0.00031199,15]
[381545195,1756276242150,-6989.83,0.000312,7]
[381545196,1756276242160,-1360.0,0.000312,2]
[381545197,1756276242170,-219.30172,0.00031251,7]
[381545198,1756276242179,-556.0,0.00031267,2]
[381545199,1756276242189,-535.65,0.00031299,15]
[381545200,1756276242199,-61528.86,0.000313,7]
[381545201,1756276242209,-835.77020053,0.00031308,5]
[381545202,1756276242219,-219.30172,0.00031334,7]
[381545203,1756276242228,-535.65,0.00031399,15]
[381545204,1756276242238,-22881.69315694,0.00031429,2]
[381545205,1756276242247,-535.65,0.00031499,15]
[381545206,1756276242256,-151.0,0.00031528,7]
[381545207,1756276242266,-151.0,0.00031528,7]
[381545208,1756276242275,-240.542382,0.00031528,7]
[381545210,1756276242285,-151.0,0.00031528,7]
[381545212,1756276242295,-151.0,0.00031528,7]
[381545214,1756276242305,-240.542382,0.00031528,7]
[381545215,1756276242317,-240.542382,0.00031528,7]
[381545216,1756276242327,-240.542382,0.00031528,7]
[381545217,1756276242336,-151.0,0.00031528,7]
[381545218,1756276242345,-314.66299066,0.00031529,2]
[381545219,1756276242355,-157.1,0.00031529,2]
[381545220,1756276242364,-250.0,0.00031529,10]
[381545221,1756276242373,-378.20258,0.00031529,10]
[381545222,1756276242383,-270343.69861105,0.00031529,20]
[381545223,1756276242395,-3400.0,0.00031529,20]
[381545244,1756276243569,-37.31491242,0.00029998,7]
[381545247,1756276243580,-218.16693058,0.00029998,7]
[381545249,1756276243589,-151.0,0.00029998,7]
[381545251,1756276243599,-8579.67834231,0.00031429,2]
[381545253,1756276243608,-11225.11209712,0.00031529,20]
[381545324,1756276246638,-160.0,0.00020563,2]
[381545325,1756276246648,-845.298898,0.000255,7]
[381545327,1756276246660,-845.298898,0.000272,7]
[381545329,1756276246669,-845.298898,0.000286,10]
[381545330,1756276246679,-845.298898,0.00029,10]
[381545331,1756276246689,-845.298898,0.000293,3]
[381545332,1756276246699,-255.481843,0.00029998,7]
[381545333,1756276246708,-151.0,0.00029998,7]
[381545334,1756276246718,-255.481843,0.00029998,7]
[381545335,1756276246728,-255.481843,0.00029998,7]
[381545336,1756276246737,-845.298898,0.00031,120]
[381545337,1756276246747,-5000.0,0.00031114,2]
[381545338,1756276246757,-92334.22111,0.00031529,20]
[381545339,1756276246766,-944.57410221,0.00031529,2]
[381545340,1756276306099,528.693496,0.00013699,2]
[381545341,1756276307079,-297.61056082,0.00020187,2]
[381545342,1756276309783,-231.08293518,0.00020187,2]
[381545344,1756276337080,3000.0,0.00027397,120]
[381545345,1756276339585,6439.17828472,0.000199,2]
[381545346,1756276450715,-5000.0,0.00021196,2]
[381545347,1756276450893,-5000.0,0.0002141,2]
[381545348,1756276451052,-300.0,0.00021626,2]
[381545349,1756276451087,-2960.83171545,0.00021627,2]
[381545350,1756276451243,-3478.3465691,0.00021627,2]
[381545351,1756276451273,-301.80560079,0.00023252,2]
[381545352,1756276451304,-177.21005458,0.00023352,2]
[381545353,1756276451469,-3560.83171545,0.00023353,2]
[381545354,1756276451608,-2878.3465691,0.00023353,2]
[381545355,1756276451639,-420.0,0.00023509,2]
[381545356,1756276451669,-604.68162746,0.00024142,2]
[381545357,1756276451700,-188.4031321,0.00024196,2]
[381545358,1756276451914,-500.0,0.00024973,2]
[381545359,1756276452296,-4136.35408941,0.0002499,2]
[381545360,1756276452709,-10000.01,0.0002499,2]
[381545361,1756276452980,-10000.01,0.0002499,2]
[381545362,1756276453007,-10000.01,0.0002499,2]
[381545363,1756276518814,7325.95538173,0.000199,2]
[381545364,1756276520806,-2674.05461856,0.00021627,2]
[381545365,1756276520994,-4651.90076288,0.00021627,2]
[381545366,1756276521178,-2674.05461856,0.00023353,2]
[381545367,1756276521215,-2674.05461856,0.00023353,2]
[381545368,1756276521377,-1977.84614432,0.00023353,2]
[381545369,1756276521406,-1044.31771136,0.0002474,2]
[381545370,1756276521443,-3955.68228864,0.0002474,2]
[381545371,1756276521529,-510.97540017,0.00024973,2]
[381545372,1756276521560,-1200.0,0.00024988,2]
[381545373,1756276521592,-500.0,0.00024989,2]
[381545374,1756276521623,-500.0,0.00024989,2]
[381545375,1756276521653,-453.11030235,0.00024989,2]
[381545376,1756276521683,-300.0,0.00024989,2]
[381545377,1756276521832,-3071.83859496,0.0002499,2]
[381545378,1756276521865,-10000.01,0.0002499,2]
[381545379,1756276521888,-10000.01,0.0002499,2]
[381545380,1756276522025,-10000.01,0.0002499,2]
[381545381,1756276522387,-10000.01,0.0002499,2]
[381545382,1756276522606,-10000.01,0.0002499,2]
[381545661,1756276694389,7577.58852787,0.000199,2]
[381545662,1756276737832,165.0,8.6e-07,2]
[381545663,1756276741771,-208.04358276,0.0002141,2]
[381545664,1756276744088,-248.508858,0.0002141,2]
[381545665,1756276746413,-156.71805524,0.0002141,2]
[381545666,1756276748520,-213.34329981,0.0002141,2]
[381545667,1756276753225,-197.39813241,0.0002141,2]
[381545668,1756276754765,-175.54011199,0.0002141,2]
[381545669,1756276758646,-210.78406626,0.0002141,2]
[381545670,1756276760915,-446.70365809,0.0002141,2]
[381545671,1756276762441,-254.70720371,0.0002141,2]
[381545672,1756276765611,-178.47786459,0.0002141,2]
[381545673,1756276766326,-2709.77516714,0.0002141,2]
[381545674,1756276766355,-300.0,0.00021626,2]
[381545675,1756276766514,-2422.42147224,0.00021627,2]
[381545676,1756276766565,-1393.03819337,0.00021627,2]
[381545677,1756276766766,-3762.12886215,0.00021627,2]
[381545678,1756276767173,-2475.7522757,0.00022696,2]
[381545679,1756276767214,-4417.083657,0.00022696,2]
[381545680,1756276767265,-5000.0,0.00023128,3]
[381545681,1756276767411,-2422.42147224,0.00023353,2]
[381545682,1756276767856,-4844.84294448,0.00023353,2]
[381545683,1756276767890,-310.32411104,0.00023353,2]
[381545684,1756276767899,-217.23771399,0.00023362,3]
[381545685,1756276767909,-420.0,0.00023509,2]
[381545686,1756276767918,-216.14835892,0.00024,3]
[381545687,1756276767927,-312.46661309,0.00024051,2]
[381545688,1756276768062,-187.53338691,0.00024051,2]
[381545689,1756276768093,-517.17721165,0.00024051,2]
[381545690,1756276768142,-4450.45645696,0.00024052,2]
[381545691,1756276768179,-4450.46645696,0.00024052,2]
[381545692,1756276768248,-1099.07708608,0.00024052,2]
[381545693,1756276768278,-2397.5962798,0.00024052,2]
[381545694,1756276768383,-1348.1595786,0.0002411,2]
[381545695,1756276768405,-1915.5618252,0.0002411,2]
[381545696,1756276768414,-666.0,0.00024214,2]
[381545697,1756276768424,-469.58614875,0.00024349,2]
[381545698,1756276768433,-500.0,0.00024973,2]
[381545699,1756276768442,-1200.0,0.00024989,2]
[381545700,1756276768451,-798.39556909,0.0002499,2]
[381545701,1756276768474,-1099.07708608,0.0002499,2]
[381545702,1756276768493,-2397.5962798,0.0002499,2]
[381545703,1756276768520,-3006.66326824,0.0002499,2]
[381545704,1756276884050,8058.06623398,0.000199,2]
[381545705,1756276899929,-230.23926981,0.00020984,2]
[381545706,1756276901636,-299.63553772,0.00020984,2]
[381545707,1756276903343,-190.644576,0.00020984,2]
[381545708,1756276905611,-178.02437,0.00020984,2]
[381545709,1756276908235,-268.69617012,0.00020984,2]
[381545710,1756276910508,-203.74795615,0.00020984,2]
[381545711,1756276913917,-401.5963178,0.00020984,2]
[381545712,1756276918996,-186.25526511,0.00020984,2]
[381545713,1756276920791,-189.60509885,0.00020984,2]
[381545714,1756276924592,-415.42695272,0.00020984,2]
[381545715,1756276928068,-168.29647525,0.00020984,2]
[381545716,1756276930503,-227.85301877,0.00020984,2]
[381545717,1756276933140,-167.3945075,0.00020984,2]
[381545718,1756276934888,-184.65371501,0.00020984,2]
[381545719,1756276936633,-303.80212423,0.00020984,2]
[381545720,1756276938885,-265.19483079,0.00020984,2]
[381545721,1756276942155,-167.3945075,0.00020984,2]
[381545722,1756276943813,-168.53752178,0.00020984,2]
[381545723,1756276946092,-237.1030353,0.00020984,2]
[381545724,1756276948523,-224.37152812,0.00020984,2]
[381545725,1756276951400,-301.7115264,0.00020984,2]
[381545726,1756276953458,-19.81569507,0.00020984,2]
[381545727,1756276953481,-150.74373565,0.00020984,2]
[381545728,1756277045594,-5000.0,0.00021196,2]
[381545729,1756277045616,-3051.0419896,0.0002141,2]
[381545730,1756277045643,-1200.0,0.00021626,2]
[381545731,1756277045666,-300.0,0.00021626,2]
[381545732,1756277045693,-8058.06623393,0.00021627,2]
[381545733,1756277053735,5000.0,0.00022,2]
[381545734,1756277061240,5000.01,0.000199,2]
[381545735,1756277061267,2586.14646714,0.000199,2]
[381545736,1756277061349,7413.86353286,0.00021627,2]
[381545737,1756277061375,172.29293423,0.00021627,2]
[381545738,1756277070805,5000.0,0.00022,2]
[381545739,1756277071998,3000.0,0.000216,2]
[381545746,1756277076846,5000.0,0.00020564,2]
[381545747,1756277080178,516.37617667,0.0002042,4]
[381545748,1756277083093,3000.0,0.000216,2]
[381545749,1756277087226,5000.0,0.00022,2]
[381545750,1756277094143,3000.0,0.000216,2]
[381545751,1756277102781,5000.0,0.00022,2]
[381545752,1756277103156,224.37152812,0.000214,2]
[381545753,1756277106651,192.40341798,0.00021854,5]
[381545754,1756277117952,5000.0,0.00022,2]
[381545755,1756277133938,5000.0,0.00022,2]
[381545757,1756277150610,5000.0,0.00022,2]
[381545758,1756277165954,5000.0,0.00022,2]
[381545759,1756277181232,5000.0,0.00022,2]
[381545760,1756277197390,5000.0,0.00022,2]
[381545761,1756277213384,5000.0,0.00022,2]
[381545762,1756277229378,5000.0,0.00022,2]
[381545763,1756277237476,7322.48424539,0.000199,2]
[381545764,1756277237596,2677.52575461,0.00021627,2]
[381545765,1756277237636,4644.95849069,0.00021627,2]
[381545766,1756277245215,5000.0,0.00022,2]
[381545767,1756277258876,5000.0,0.00020564,2]
[381545768,1756277261339,5000.0,0.00022,2]
[381545769,1756277261795,0.01,0.00021952,2]
[381545770,1756277261819,151.930711,0.00021952,2]
[381545771,1756277274833,203.6903084,0.00021096,2]
[381545772,1756277277086,5000.0,0.00022,2]
[381545773,1756277293101,5000.0,0.00022,2]
[381545774,1756277309373,5000.0,0.00022,2]
[381545775,1756277324818,5000.0,0.00022,2]
[381545776,1756277340817,5000.0,0.00022,2]
[381545777,1756277357461,5000.0,0.00022,2]
[381545778,1756277361857,257.91717519,0.00021933,2]
[381545779,1756277372949,5000.0,0.00022,2]
[381545780,1756277388779,5000.0,0.00022,2]
[381545781,1756277403212,224.37152812,0.000214,2]
[381545782,1756277404139,5000.0,0.00022,2]
[381545783,1756277420372,5000.0,0.00022,2]
[381545784,1756277428146,6948.532106,0.000199,2]
[381545785,1756277428298,3051.477894,0.00021627,2]
[381545786,1756277428328,3897.05421192,0.00021627,2]
[381545812,1756277431702,-151.32380862,0.00022033,2]
[381545813,1756277431712,-1571.124292,0.00022057,2]
[381545814,1756277431722,-185.37691788,0.0002206,2]
[381545815,1756277431732,-1105.8965927,0.0002216,2]
[381545816,1756277431742,-185.37691785,0.00022473,2]
[381545817,1756277431752,-180.797121,0.00022665,2]
[381545818,1756277431761,-180.797121,0.00022688,2]
[381545819,1756277431772,-180.797121,0.0002271,2]
[381545820,1756277431784,-592.0,0.00022736,2]
[381545821,1756277431793,-185.37691785,0.00022887,2]
[381545822,1756277431803,-1813.7052974,0.0002303,2]
[381545824,1756277431812,-2197.97236397,0.00023084,2]
[381545825,1756277431823,-1200.0,0.00023106,2]
[381545826,1756277431832,-250.0,0.00023107,2]
[381545827,1756277431843,-300.0,0.00023217,2]
[381545828,1756277431853,-300.0,0.00023217,2]
[381545829,1756277431866,-300.0,0.00023217,2]
[381545830,1756277431876,-239.0,0.00023217,2]
[381545831,1756277431887,-2585.09435,0.00023218,2]
[381545832,1756277431897,-185.37691785,0.000233,2]
[381545833,1756277431907,-160.0,0.00023324,2]
[381545834,1756277431916,-1770.96878678,0.00023326,2]
[381545835,1756277431948,-592.378989,0.00023326,2]
[381545836,1756277431971,-964.56567622,0.00023326,2]
[381545837,1756277431981,-1200.0,0.00023351,2]
[381545838,1756277431990,-6948.53210592,0.00023353,2]
[381545839,1756277432000,-493.93785498,0.000234,2]
[381545840,1756277432012,-6.06214502,0.000234,2]
[381545841,1756277432026,-275.8955373,0.000234,2]
[381545993,1756277437712,-5000.0,0.00023166,2]
[381545994,1756277437721,-224.1044627,0.000234,2]
[381545995,1756277437731,-500.0,0.000234,2]
[381545996,1756277437740,-683.6037885,0.00023554,2]
[381545997,1756277437750,-388.08712309,0.00023575,2]
[381545998,1756277437759,-706.62859394,0.00023575,2]
[381545999,1756277437769,-1000.0,0.00023948,2]
[381546000,1756277437782,-1000.0,0.00023948,2]
[381546001,1756277437792,-436.826892,0.0002405,2]
[381546002,1756277437801,-516.978478,0.00024078,2]
[381546003,1756277437811,-1500.0,0.00024496,2]
[381546004,1756277437822,-1500.0,0.00024496,2]
[381546005,1756277437831,-500.0,0.00024547,2]
[381546006,1756277437841,-355.70009992,0.00024547,2]
[381546007,1756277437850,-1552.34849237,0.00024548,2]
[381546008,1756277437861,-380.0,0.00024658,2]
[381546009,1756277437870,-912.99863926,0.00024972,2]
[381546010,1756277437880,-611.52714418,0.00024973,2]
[381546011,1756277437889,-155.35558156,0.00024973,2]
[381546012,1756277437899,-462.65477299,0.00024973,2]
[381546013,1756277437908,-5489.99511242,0.0002499,2]
[381546014,1756277437917,-151.0,0.00025,8]
[381546015,1756277437927,-2000.0,0.00025044,2]
[381546016,1756277437936,-473.20266328,0.00025044,2]
[381546017,1756277437946,-6948.53210592,0.0002508,2]
[381546018,1756277437956,-500.0,0.00025131,2]
[381546019,1756277437966,-6590.24512136,0.00025131,2]
[381546020,1756277437976,-6494.93303553,0.00025149,2]
[381546021,1756277437986,-292.30584357,0.00025158,2]
[381546022,1756277437996,-179.33548377,0.00025158,2]
[381546023,1756277438005,-151.0,0.00025158,2]
[381546024,1756277438015,-201.93286099,0.00025158,2]
[381546025,1756277438024,-151.2106036,0.00025158,2]
[381546026,1756277438033,-151.0,0.00025158,2]
[381546027,1756277438043,-151.0,0.00025158,2]
[381546028,1756277438052,-151.0,0.00025158,2]
[381546029,1756277438062,-151.0,0.00025158,2]
[381546030,1756277438072,-151.0,0.00025158,2]
[381546031,1756277438081,-151.0,0.00025158,2]
[381546032,1756277438090,-151.0,0.00025158,2]
[381546033,1756277438100,-151.0,0.00025158,2]
[381546034,1756277438110,-151.0,0.00025158,2]
[381546035,1756277438119,-151.0,0.00025158,2]
[381546036,1756277438128,-151.0,0.00025158,2]
[381546037,1756277438138,-163.98468888,0.00025173,2]
[381546038,1756277438147,-500.0,0.00025173,2]
[381546039,1756277438157,-500.0,0.00025173,2]
[381546040,1756277438166,-717.0,0.00025197,2]
[381546041,1756277438176,-420.0,0.00025198,2]
[381546042,1756277438185,-224.0,0.00025198,2]
[381546043,1756277438195,-151.0,0.000252,11]
[381546044,1756277438206,-1584.85,0.00025206,10]
[381546045,1756277438215,-33586.3713225,0.00025216,2]
[381546046,1756277438224,-1334.15203917,0.00025216,2]
[381546047,1756277438234,-793.99,0.00025221,3]
[381546048,1756277438244,-397.0,0.00025221,3]
[381546049,1756277438254,-198.5,0.00025221,3]
[381546050,1756277438263,-595.52,0.00025221,3]
[381546051,1756277438273,-3202.57,0.00025221,3]
[381546052,1756277438283,-1698.49,0.00025221,3]
[381546053,1756277438292,-849.24,0.00025221,3]
[381546054,1756277438303,-424.62,0.00025221,3]
[381546055,1756277438312,-212.31,0.00025221,3]
[381546056,1756277438321,-800.94,0.00025221,3]
[381546057,1756277438330,-400.47,0.00025221,3]
[381546058,1756277438339,-200.24,0.00025221,3]
[381546059,1756277438348,-600.72,0.00025221,3]
[381546060,1756277438358,-748.28,0.00025221,3]
[381546061,1756277438368,-417.15472785,0.00025221,3]
[381546068,1756277438590,-216.14835892,0.00025221,3]
[381546071,1756277438608,-160.0,0.00025221,3]
[381546073,1756277438617,-529.56067766,0.00025221,3]
[381546075,1756277438626,-425.44119842,0.00025221,3]
[381546077,1756277438635,-636.97,0.00025231,3]
[381546079,1756277438646,-235104.599257,0.00025231,2]
[381546081,1756277438655,-10673.2163134,0.00025231,2]
[381546083,1756277438664,-370000.0,0.00025241,2]
[381546085,1756277438673,-270.0,0.00025246,2]
[381546087,1756277438682,-500.0,0.00025273,2]
[381546089,1756277438692,-500.0,0.00025273,2]
[381546091,1756277438702,-500.0,0.00025273,2]
[381546093,1756277438711,-500.0,0.00025273,2]
[381546095,1756277438720,-500.0,0.00025273,2]
[381546097,1756277438729,-506.77159299,0.00025273,2]
[381546099,1756277438739,-500.0,0.00025273,2]
[381546101,1756277438748,-500.0,0.00025273,2]
[381546103,1756277438758,-424.02450376,0.00025273,2]
[381546105,1756277438767,-500.0,0.00025273,2]
[381546107,1756277438777,-500.0,0.00025273,2]
[381546109,1756277438790,-500.0,0.00025273,2]
[381546111,1756277438800,-500.0,0.00025273,2]
[381546113,1756277438809,-500.0,0.00025273,2]
[381546115,1756277438818,-500.0,0.00025273,2]
[381546117,1756277438828,-500.0,0.00025273,2]
[381546119,1756277438838,-500.0,0.00025273,2]
[381546121,1756277438847,-500.0,0.00025273,2]
[381546123,1756277438856,-500.0,0.00025273,2]
[381546125,1756277438865,-500.0,0.00025273,2]
[381546127,1756277438874,-500.0,0.00025273,2]
[381546129,1756277438883,-500.0,0.00025273,2]
[381546131,1756277438893,-500.0,0.00025273,2]
[381546133,1756277438902,-500.31743883,0.00025273,2]
[381546135,1756277438911,-500.0,0.00025273,2]
[381546137,1756277438921,-500.0,0.00025273,2]
[381546139,1756277438930,-500.0,0.00025273,2]
[381546141,1756277438939,-500.0,0.00025273,2]
[381546143,1756277438949,-504.14781193,0.00025273,2]
[381546145,1756277438959,-500.0,0.00025273,2]
[381546147,1756277438967,-2668.30407834,0.0002529,2]
[381546149,1756277438976,-301.07,0.00025298,2]
[381546151,1756277438986,-179.36,0.00025298,2]
[381546153,1756277438995,-71480.97,0.000253,7]
[381546155,1756277439005,-160.0,0.000253,7]
[381546157,1756277439014,-15549.47,0.000253,2]
[381546159,1756277439023,-4980.37,0.000253,7]
[381546161,1756277439032,-417.15472785,0.000253,7]
[381546163,1756277439041,-1000.0,0.000253,2]
[381546165,1756277439050,-1000.0,0.000253,2]
[381546167,1756277439059,-216.14835892,0.000253,7]
[381546169,1756277439068,-529.56067766,0.000253,7]
[381546170,1756277439078,-425.44119842,0.000253,7]
[381546172,1756277439087,-160.0,0.0002533,2]
[381546174,1756277439097,-160.0,0.0002533,2]
[381546177,1756277439108,-1440.0,0.0002534,2]
[381546179,1756277439117,-160.0,0.00025343,2]
[381546181,1756277439126,-529.56067766,0.00025343,2]
[381546182,1756277439135,-160.0,0.00025343,2]
[381546184,1756277439144,-160.0,0.00025354,2]
[381546186,1756277439153,-500.0,0.00025405,2]
[381546188,1756277439163,-184.95486451,0.00025458,5]
[381546190,1756277439172,-1878.34459499,0.00025481,2]
[381546192,1756277439182,-2446.10857671,0.00025513,2]
[381546194,1756277439191,-3492.78410784,0.0002552,2]
[381546196,1756277439200,-6590.24512136,0.00025548,2]
[381546198,1756277439210,-2500.0,0.00025592,2]
[381546200,1756277439219,-151.0,0.000256,18]
[381546202,1756277439228,-500.0,0.00025679,2]
[381546204,1756277439238,-1000.0,0.00025721,2]
[381546206,1756277439247,-626.09121599,0.00025721,2]
[381546208,1756277439256,-151.0,0.000258,19]
[381546210,1756277439265,-508.57563063,0.00025821,2]
[381546212,1756277439274,-1000.0,0.00025821,2]
[381546214,1756277439283,-346.18398143,0.00025821,2]
[381546216,1756277439293,-1000.0,0.00025821,2]
[381546218,1756277439302,-504.14361721,0.00025821,2]
[381546221,1756277439312,-1000.0,0.00025821,2]
[381546224,1756277439321,-1011.33233376,0.00025821,2]
[381546226,1756277439332,-1000.0,0.00025821,2]
[381546228,1756277439341,-714.4432057,0.00025821,2]
[381546230,1756277439351,-1000.0,0.00025821,2]
[381546232,1756277439360,-1000.0,0.00025821,2]
[381546234,1756277439370,-1000.0,0.00025821,2]
[381546236,1756277439379,-503.45865799,0.00025821,2]
[381546238,1756277439388,-1000.0,0.00025821,2]
[381546240,1756277439398,-861.49580924,0.00025821,2]
[381546242,1756277439407,-1000.0,0.00025821,2]
[381546244,1756277439416,-1057.45547341,0.00025821,2]
[381546246,1756277439425,-1000.0,0.00025821,2]
[381546248,1756277439435,-435.67679133,0.00025821,2]
[381546250,1756277439444,-1000.0,0.00025821,2]
[381546252,1756277439453,-1000.0,0.00025821,2]
[381546254,1756277439463,-265.595,0.00025837,11]
[381546255,1756277439472,-5971.25,0.000259,2]
[381546256,1756277439482,-151.0,0.000259,18]
[381546257,1756277439491,-2416.30778334,0.00025901,2]
[381546258,1756277439501,-500.0,0.00025953,2]
[381546259,1756277439510,-6590.24512136,0.00025966,2]
[381546260,1756277439519,-160.0,0.00026,2]
[381546261,1756277439529,-151.0,0.000261,13]
[381546262,1756277439538,-834.21974476,0.0002614,2]
[381546263,1756277439548,-151.0,0.000262,20]
[381546264,1756277439557,-500.0,0.00026227,2]
[381546266,1756277439567,-1334.15203917,0.00026258,2]
[381546268,1756277439576,-1500.0,0.00026268,2]
[381546270,1756277439586,-151.0,0.000263,20]
[381546272,1756277439595,-151.0,0.000263,17]
[381546274,1756277439604,-1500.0,0.00026368,2]
[381546276,1756277439614,-1500.0,0.00026368,2]
[381546278,1756277439623,-1514.09166701,0.00026368,2]
[381546280,1756277439632,-164.1333832,0.00026368,2]
[381546282,1756277439641,-1008.16533693,0.00026368,2]
[381546284,1756277439651,-507.17363693,0.00026368,2]
[381546286,1756277439660,-1500.0,0.00026368,2]
[381546288,1756277439669,-1500.0,0.00026368,2]
[381546290,1756277439678,-642.34281078,0.00026368,2]
[381546292,1756277439687,-504.5014014,0.00026368,2]
[381546294,1756277439696,-1500.0,0.00026368,2]
[381546296,1756277439706,-1500.0,0.00026368,2]
[381546298,1756277439716,-6590.24512136,0.00026383,2]
[381546300,1756277439725,-6209.3939695,0.00026493,2]
[381546302,1756277439734,-2823.68786139,0.00026493,2]
[381546304,1756277439743,-2071.13,0.00026497,2]
[381546306,1756277439753,-151.0,0.000265,12]
[381546308,1756277439762,-209.40437684,0.00026527,2]
[381546310,1756277439771,-260.0,0.00026548,2]
[381546312,1756277439783,-1587.98,0.00026591,3]
[381546314,1756277439792,-794.0,0.00026591,3]
[381546316,1756277439802,-397.0,0.00026591,3]
[381546318,1756277439811,-6405.14,0.00026591,3]
[381546320,1756277439820,-3396.98,0.00026591,3]
[381546322,1756277439830,-1698.48,0.00026591,3]
[381546324,1756277439840,-849.24,0.00026591,3]
[381546326,1756277439850,-424.62,0.00026591,3]
[381546328,1756277439859,-1601.88,0.00026591,3]
[381546330,1756277439869,-800.94,0.00026591,3]
[381546332,1756277439878,-400.48,0.00026591,3]
[381546334,1756277439887,-151.0,0.000266,11]
[381546336,1756277439896,-151.0,0.00026633,2]
[381546337,1756277439905,-151.0,0.00026633,2]
[381546338,1756277439914,-151.0,0.00026633,2]